[Event "January 2 Late 2024"]
[Site "https://www.chess.com"]
[Date "2024.01.02"]
[Round "5"]
[White "th3d4rkness"]
[Black "Paragua, Megan Althea"]
[Result "0-1"]
[Board "188"]
[TimeControl "180+1"]
[BlackFideId "30973007"]
[WhiteElo "2156"]
[BlackElo "2370"]
[BlackTeam "USA"]
[WhiteClock "0:00:00"]
[BlackClock "0:00:03"]

1. d4 {[%clk 0:03:00]}  Nf6 {[%clk 0:02:59]} 2. c4 {[%clk 0:02:59]}  e6 {[%clk 0:02:59]} 3. Nf3 {[%clk 0:02:58]}  d5 {[%clk 0:02:59]} 4. g3 {[%clk 0:02:58]}  Be7 {[%clk 0:02:59]} 5. Bg2 {[%clk 0:02:57]}  O-O {[%clk 0:03:00]} 6. O-O {[%clk 0:02:55]}  dxc4 {[%clk 0:03:00]} 7. Ne5 {[%clk 0:02:48]}  Nc6 {[%clk 0:02:57]} 8. Nxc6 {[%clk 0:02:42]}  bxc6 {[%clk 0:02:57]} 9. e3 {[%clk 0:02:35]}  Rb8 {[%clk 0:02:49]} 10. Nd2 {[%clk 0:02:32]}  Ba6 {[%clk 0:02:47]} 11. Re1 {[%clk 0:02:30]}  Rb6 {[%clk 0:02:45]} 12. Qc2 {[%clk 0:02:28]}  Nd5 {[%clk 0:02:35]} 13. a3 {[%clk 0:02:23]}  c5 {[%clk 0:02:09]} 14. dxc5 {[%clk 0:02:18]}  Bxc5 {[%clk 0:02:06]} 15. Nxc4 {[%clk 0:02:17]}  Bxc4 {[%clk 0:01:24]} 16. Qxc4 {[%clk 0:02:17]}  Be7 {[%clk 0:01:23]} 17. b4 {[%clk 0:02:09]}  Bf6 {[%clk 0:01:19]} 18. Ra2 {[%clk 0:02:06]}  Rd6 {[%clk 0:01:13]} 19. Rc2 {[%clk 0:01:59]}  c6 {[%clk 0:01:05]} 20. e4 {[%clk 0:01:49]}  Nb6 {[%clk 0:01:02]} 21. Qe2 {[%clk 0:01:36]}  e5 {[%clk 0:00:54]} 22. Be3 {[%clk 0:01:29]}  Re8 {[%clk 0:00:43]} 23. Rec1 {[%clk 0:01:28]}  Rd3 {[%clk 0:00:35]} 24. Rc3 {[%clk 0:01:14]}  Rxc3 {[%clk 0:00:19]} 25. Rxc3 {[%clk 0:01:13]}  Qd7 {[%clk 0:00:20]} 26. Rd3 {[%clk 0:01:10]}  Qe6 {[%clk 0:00:20]} 27. Bxb6 {[%clk 0:01:03]}  axb6 {[%clk 0:00:21]} 28. Qc2 {[%clk 0:01:01]}  h6 {[%clk 0:00:20]} 29. h4 {[%clk 0:00:59]}  Rc8 {[%clk 0:00:18]} 30. Rc3 {[%clk 0:00:59]}  Qd6 {[%clk 0:00:16]} 31. Rd3 {[%clk 0:00:57]}  Qe7 {[%clk 0:00:15]} 32. h5 {[%clk 0:00:54]}  Rc7 {[%clk 0:00:16]} 33. Qd1 {[%clk 0:00:52]}  c5 {[%clk 0:00:15]} 34. bxc5 {[%clk 0:00:48]}  bxc5 {[%clk 0:00:16]} 35. Bh3 {[%clk 0:00:47]}  c4 {[%clk 0:00:14]} 36. Rc3 {[%clk 0:00:47]}  Qc5 {[%clk 0:00:13]} 37. Bf1 {[%clk 0:00:45]}  Qb5 {[%clk 0:00:09]} 38. Qc2 {[%clk 0:00:43]}  Qa5 {[%clk 0:00:08]} 39. Bxc4 {[%clk 0:00:39]}  Kh8 {[%clk 0:00:07]} 40. a4 {[%clk 0:00:39]}  Be7 {[%clk 0:00:05]} 41. Qb3 {[%clk 0:00:27]}  Qc5 {[%clk 0:00:04]} 42. Rc2 {[%clk 0:00:23]}  Qd4 {[%clk 0:00:04]} 43. Bd3 {[%clk 0:00:20]}  Rxc2 {[%clk 0:00:03]} 44. Qxc2 {[%clk 0:00:20]}  Bc5 {[%clk 0:00:04]} 45. Bb5 {[%clk 0:00:17]}  Qa1+ {[%clk 0:00:03]} 46. Kg2 {[%clk 0:00:17]}  Qd4 {[%clk 0:00:04]} 47. Qe2 {[%clk 0:00:15]}  Kg8 {[%clk 0:00:04]} 48. a5 {[%clk 0:00:13]}  Kf8 {[%clk 0:00:04]} 49. a6 {[%clk 0:00:11]}  Ke7 {[%clk 0:00:04]} 50. Qc2 {[%clk 0:00:08]}  g6 {[%clk 0:00:02]} 51. Bc6 {[%clk 0:00:05]}  Bb6 {[%clk 0:00:02]} 52. Bd5 {[%clk 0:00:05]}  Bc5 {[%clk 0:00:03]} 53. Qa2 {[%clk 0:00:04]}  gxh5 {[%clk 0:00:03]} 54. Qe2 {[%clk 0:00:02]}  h4 {[%clk 0:00:02]} 55. gxh4 {[%clk 0:00:01]}  h5 {[%clk 0:00:02]} 56. Qf3 {[%clk 0:00:01]}  Qd2 {[%clk 0:00:01]} 57. Qxf7+ {[%clk 0:00:01]}  Kd6 {[%clk 0:00:02]} 58. Qe6+ {[%clk 0:00:01]}  Kc7 {[%clk 0:00:02]} 59. Qc6+ {[%clk 0:00:00]}  Kd8 {[%clk 0:00:03]} 0-1

[Event "January 2 Late 2024"]
[Site "https://www.chess.com"]
[Date "2024.01.02"]
[Round "5"]
[White "Gao, Raymond"]
[Black "Ivanov, Aleksandr"]
[Result "0-1"]
[Board "189"]
[TimeControl "180+1"]
[WhiteFideId "2629429"]
[BlackFideId "2092980"]
[WhiteElo "2367"]
[BlackElo "2140"]
[WhiteTeam "CAN"]
[BlackTeam "USA"]
[WhiteClock "0:00:26"]
[BlackClock "0:00:43"]

1. e4 {[%clk 0:02:50]}  e6 {[%clk 0:02:59]} 2. d4 {[%clk 0:02:49]}  d5 {[%clk 0:02:59]} 3. Nd2 {[%clk 0:02:50]}  c5 {[%clk 0:02:58]} 4. exd5 {[%clk 0:02:50]}  Qxd5 {[%clk 0:02:58]} 5. Ngf3 {[%clk 0:02:50]}  cxd4 {[%clk 0:02:58]} 6. Bc4 {[%clk 0:02:50]}  Qd6 {[%clk 0:02:57]} 7. O-O {[%clk 0:02:50]}  Nf6 {[%clk 0:02:57]} 8. Nb3 {[%clk 0:02:50]}  Nc6 {[%clk 0:02:57]} 9. Nbxd4 {[%clk 0:02:50]}  Nxd4 {[%clk 0:02:57]} 10. Nxd4 {[%clk 0:02:51]}  a6 {[%clk 0:02:57]} 11. Re1 {[%clk 0:02:50]}  Qc7 {[%clk 0:02:57]} 12. Bb3 {[%clk 0:02:49]}  Bd6 {[%clk 0:02:55]} 13. Nf5 {[%clk 0:02:49]}  Bxh2+ {[%clk 0:02:48]} 14. Kh1 {[%clk 0:02:48]}  O-O {[%clk 0:02:48]} 15. Nxg7 {[%clk 0:02:43]}  Rd8 {[%clk 0:02:48]} 16. Qf3 {[%clk 0:02:39]}  Kxg7 {[%clk 0:02:47]} 17. Bh6+ {[%clk 0:02:30]}  Kg6 {[%clk 0:02:47]} 18. c3 {[%clk 0:02:30]}  Nh5 {[%clk 0:02:40]} 19. Bc2+ {[%clk 0:02:28]}  Kxh6 {[%clk 0:02:32]} 20. g4 {[%clk 0:01:53]}  Qf4 {[%clk 0:01:53]} 21. Qh3 {[%clk 0:01:42]}  Rd5 {[%clk 0:01:27]} 22. Re4 {[%clk 0:01:11]}  Qxf2 {[%clk 0:01:16]} 23. Bb3 {[%clk 0:00:34]}  Rg5 {[%clk 0:00:45]} 24. Rf1 {[%clk 0:00:30]}  Qxf1+ {[%clk 0:00:45]} 25. Qxf1 {[%clk 0:00:30]}  Ng3+ {[%clk 0:00:45]} 26. Kxh2 {[%clk 0:00:26]}  Nxf1+ {[%clk 0:00:43]} 27. Kg2 {[%clk 0:00:26]} 0-1

[Event "January 2 Late 2024"]
[Site "https://www.chess.com"]
[Date "2024.01.02"]
[Round "5"]
[White "Obon Temprano, Sergi"]
[Black "Clarke, Matthew"]
[Result "1-0"]
[Board "190"]
[TimeControl "180+1"]
[WhiteFideId "2226545"]
[BlackFideId "3227804"]
[WhiteElo "2358"]
[BlackElo "2136"]
[WhiteTeam "ESP"]
[BlackTeam "AUS"]
[WhiteClock "0:00:56"]
[BlackClock "0:00:00"]

1. Nf3 {[%clk 0:03:00]}  d5 {[%clk 0:02:55]} 2. e3 {[%clk 0:02:59]}  c5 {[%clk 0:02:49]} 3. c4 {[%clk 0:02:58]}  d4 {[%clk 0:02:46]} 4. d3 {[%clk 0:02:54]}  Nc6 {[%clk 0:02:45]} 5. Be2 {[%clk 0:02:53]}  e5 {[%clk 0:02:41]} 6. O-O {[%clk 0:02:53]}  Nf6 {[%clk 0:02:37]} 7. exd4 {[%clk 0:02:52]}  cxd4 {[%clk 0:02:34]} 8. Bg5 {[%clk 0:02:49]}  a5 {[%clk 0:02:24]} 9. Nbd2 {[%clk 0:02:48]}  Be7 {[%clk 0:02:15]} 10. Rb1 {[%clk 0:02:45]}  Bf5 {[%clk 0:02:03]} 11. b3 {[%clk 0:02:40]}  O-O {[%clk 0:01:55]} 12. Nh4 {[%clk 0:02:36]}  Be6 {[%clk 0:01:50]} 13. f4 {[%clk 0:02:35]}  h6 {[%clk 0:01:32]} 14. fxe5 {[%clk 0:02:18]}  hxg5 {[%clk 0:01:23]} 15. exf6 {[%clk 0:02:18]}  Bxf6 {[%clk 0:01:19]} 16. Nf5 {[%clk 0:02:16]}  Be5 {[%clk 0:00:36]} 17. Ne4 {[%clk 0:02:00]}  g6 {[%clk 0:00:16]} 18. Nh6+ {[%clk 0:01:43]}  Kg7 {[%clk 0:00:16]} 19. Ng4 {[%clk 0:01:43]}  Bxg4 {[%clk 0:00:17]} 20. Bxg4 {[%clk 0:01:42]}  f5 {[%clk 0:00:17]} 21. Nc5 {[%clk 0:01:35]}  Qe7 {[%clk 0:00:11]} 22. Nxb7 {[%clk 0:01:21]}  Qxb7 {[%clk 0:00:10]} 23. Bf3 {[%clk 0:01:20]}  Qc7 {[%clk 0:00:08]} 24. g3 {[%clk 0:01:10]}  g4 {[%clk 0:00:09]} 25. Bd5 {[%clk 0:01:06]}  Ne7 {[%clk 0:00:07]} 26. Bxa8 {[%clk 0:01:05]}  Rxa8 {[%clk 0:00:06]} 27. Qe2 {[%clk 0:01:06]}  Nc6 {[%clk 0:00:03]} 28. Rbe1 {[%clk 0:01:04]}  Rh8 {[%clk 0:00:03]} 29. Rf2 {[%clk 0:01:02]}  Rh3 {[%clk 0:00:03]} 30. Rg2 {[%clk 0:00:59]}  Kf6 {[%clk 0:00:00]} 31. Qf2 {[%clk 0:00:56]} 1-0

[Event "January 2 Late 2024"]
[Site "https://www.chess.com"]
[Date "2024.01.02"]
[Round "5"]
[White "Kleibel, Uwe"]
[Black "Gardezi, Arsal"]
[Result "0-1"]
[Board "191"]
[TimeControl "180+1"]
[WhiteFideId "1270982"]
[BlackFideId "30949521"]
[WhiteElo "2347"]
[BlackElo "2125"]
[WhiteTeam "GER"]
[BlackTeam "USA"]
[WhiteClock "0:00:12"]
[BlackClock "0:00:02"]

1. e4 {[%clk 0:03:00]}  d6 {[%clk 0:02:55]} 2. d4 {[%clk 0:03:00]}  g6 {[%clk 0:02:48]} 3. c3 {[%clk 0:02:58]}  Bg7 {[%clk 0:02:49]} 4. Nf3 {[%clk 0:02:57]}  Nd7 {[%clk 0:02:43]} 5. Bd3 {[%clk 0:02:55]}  e5 {[%clk 0:02:41]} 6. dxe5 {[%clk 0:02:54]}  Nxe5 {[%clk 0:02:38]} 7. Nxe5 {[%clk 0:02:53]}  Bxe5 {[%clk 0:02:35]} 8. O-O {[%clk 0:02:53]}  Ne7 {[%clk 0:02:28]} 9. Bh6 {[%clk 0:02:52]}  Be6 {[%clk 0:02:15]} 10. f4 {[%clk 0:02:46]}  Bf6 {[%clk 0:02:15]} 11. f5 {[%clk 0:02:46]}  gxf5 {[%clk 0:02:02]} 12. exf5 {[%clk 0:02:47]}  Bd5 {[%clk 0:02:02]} 13. Nd2 {[%clk 0:02:35]}  Qd7 {[%clk 0:01:38]} 14. Ne4 {[%clk 0:02:35]}  Bxe4 {[%clk 0:01:38]} 15. Bxe4 {[%clk 0:02:34]}  O-O-O {[%clk 0:01:39]} 16. Qb3 {[%clk 0:02:34]}  d5 {[%clk 0:01:38]} 17. Bd3 {[%clk 0:02:29]}  Rhg8 {[%clk 0:01:27]} 18. Rf2 {[%clk 0:02:26]}  d4 {[%clk 0:01:21]} 19. c4 {[%clk 0:02:25]}  Be5 {[%clk 0:01:15]} 20. Re1 {[%clk 0:02:16]}  Qd6 {[%clk 0:01:13]} 21. Rxe5 {[%clk 0:01:51]}  Qxe5 {[%clk 0:01:04]} 22. Bf4 {[%clk 0:01:51]}  Qc5 {[%clk 0:00:42]} 23. Qa4 {[%clk 0:01:42]}  Nc6 {[%clk 0:00:39]} 24. a3 {[%clk 0:01:32]}  Ne5 {[%clk 0:00:35]} 25. b4 {[%clk 0:01:28]}  Qe7 {[%clk 0:00:31]} 26. Bf1 {[%clk 0:01:18]}  Kb8 {[%clk 0:00:19]} 27. c5 {[%clk 0:01:10]}  d3 {[%clk 0:00:18]} 28. c6 {[%clk 0:00:49]}  Nxc6 {[%clk 0:00:17]} 29. b5 {[%clk 0:00:49]}  Nd4 {[%clk 0:00:16]} 30. Bxd3 {[%clk 0:00:47]}  Qe1+ {[%clk 0:00:15]} 31. Rf1 {[%clk 0:00:46]}  Nf3+ {[%clk 0:00:14]} 32. Kh1 {[%clk 0:00:45]}  Qh4 {[%clk 0:00:08]} 33. gxf3 {[%clk 0:00:25]}  Qh3 {[%clk 0:00:08]} 34. Bxc7+ {[%clk 0:00:11]}  Kxc7 {[%clk 0:00:09]} 35. Qf4+ {[%clk 0:00:10]}  Kc8 {[%clk 0:00:09]} 36. Rc1+ {[%clk 0:00:10]}  Kd7 {[%clk 0:00:10]} 37. Qd4+ {[%clk 0:00:09]}  Ke8 {[%clk 0:00:10]} 38. Re1+ {[%clk 0:00:10]}  Kf8 {[%clk 0:00:07]} 39. Qc5+ {[%clk 0:00:11]}  Kg7 {[%clk 0:00:07]} 40. Qe5+ {[%clk 0:00:11]}  Kh6 {[%clk 0:00:06]} 41. Qf4+ {[%clk 0:00:11]}  Rg5 {[%clk 0:00:06]} 42. Rg1 {[%clk 0:00:11]}  Rg8 {[%clk 0:00:04]} 43. Rg3 {[%clk 0:00:10]}  Qh5 {[%clk 0:00:02]} 44. Be2 {[%clk 0:00:09]}  f6 {[%clk 0:00:03]} 45. Bf1 {[%clk 0:00:09]}  Qf7 {[%clk 0:00:03]} 46. Rh3+ {[%clk 0:00:10]}  Kg7 {[%clk 0:00:03]} 47. Qh4 {[%clk 0:00:10]}  Kh8 {[%clk 0:00:02]} 48. Rg3 {[%clk 0:00:08]}  Rxg3 {[%clk 0:00:01]} 49. hxg3 {[%clk 0:00:09]}  Qe7 {[%clk 0:00:01]} 50. Kg2 {[%clk 0:00:10]}  Qe5 {[%clk 0:00:01]} 51. Kg1 {[%clk 0:00:11]}  Rxg3+ {[%clk 0:00:02]} 52. Bg2 {[%clk 0:00:12]}  Qe3+ {[%clk 0:00:02]} 53. Kh2 {[%clk 0:00:12]}  Qg5 {[%clk 0:00:02]} 54. Qd4 {[%clk 0:00:11]}  Rxg2+ {[%clk 0:00:02]} 55. Kh3 {[%clk 0:00:12]}  Qg3# {[%clk 0:00:02]} 0-1

[Event "January 2 Late 2024"]
[Site "https://www.chess.com"]
[Date "2024.01.02"]
[Round "5"]
[White "Van der Werf, Mark"]
[Black "Carrillo Marval, Maria Angelica"]
[Result "1/2-1/2"]
[Board "192"]
[TimeControl "180+1"]
[WhiteFideId "1000470"]
[BlackFideId "3911853"]
[WhiteElo "2344"]
[BlackElo "2077"]
[WhiteTeam "NED"]
[BlackTeam "PAN"]
[WhiteClock "0:00:20"]
[BlackClock "0:00:06"]

1. Nf3 {[%clk 0:03:00]}  Nf6 {[%clk 0:02:59]} 2. c4 {[%clk 0:03:00]}  g6 {[%clk 0:02:58]} 3. Nc3 {[%clk 0:02:56]}  c5 {[%clk 0:02:52]} 4. g3 {[%clk 0:02:53]}  Bg7 {[%clk 0:02:52]} 5. Bg2 {[%clk 0:02:54]}  O-O {[%clk 0:02:52]} 6. O-O {[%clk 0:02:54]}  e6 {[%clk 0:02:53]} 7. d4 {[%clk 0:02:52]}  cxd4 {[%clk 0:02:53]} 8. Nxd4 {[%clk 0:02:52]}  Nc6 {[%clk 0:02:53]} 9. Nc2 {[%clk 0:02:47]}  a6 {[%clk 0:02:49]} 10. b3 {[%clk 0:02:37]}  Ne7 {[%clk 0:02:41]} 11. Ba3 {[%clk 0:02:32]}  Re8 {[%clk 0:02:40]} 12. Qd2 {[%clk 0:02:29]}  d5 {[%clk 0:02:38]} 13. Bxe7 {[%clk 0:02:21]}  Rxe7 {[%clk 0:02:38]} 14. cxd5 {[%clk 0:02:21]}  exd5 {[%clk 0:02:39]} 15. Rad1 {[%clk 0:02:16]}  Be6 {[%clk 0:02:22]} 16. e4 {[%clk 0:02:10]}  Rd7 {[%clk 0:02:18]} 17. exd5 {[%clk 0:02:08]}  Bg4 {[%clk 0:01:57]} 18. Rc1 {[%clk 0:02:00]}  Rc8 {[%clk 0:01:47]} 19. Ne3 {[%clk 0:01:59]}  Bh6 {[%clk 0:01:38]} 20. Qd4 {[%clk 0:01:50]}  Bg7 {[%clk 0:01:32]} 21. Nxg4 {[%clk 0:01:44]}  Nxd5 {[%clk 0:01:27]} 22. Ne5 {[%clk 0:01:10]}  Nxc3 {[%clk 0:01:11]} 23. Qxd7 {[%clk 0:00:56]}  Bxe5 {[%clk 0:01:02]} 24. Qxd8+ {[%clk 0:00:53]}  Rxd8 {[%clk 0:01:02]} 25. Rfe1 {[%clk 0:00:50]}  Bf6 {[%clk 0:00:58]} 26. Bxb7 {[%clk 0:00:49]}  Nxa2 {[%clk 0:00:55]} 27. Rcd1 {[%clk 0:00:47]}  Rb8 {[%clk 0:00:55]} 28. Bd5 {[%clk 0:00:45]}  Nc3 {[%clk 0:00:53]} 29. Rd3 {[%clk 0:00:42]}  Nxd5 {[%clk 0:00:45]} 30. Rxd5 {[%clk 0:00:42]}  Rxb3 {[%clk 0:00:45]} 31. Rd6 {[%clk 0:00:41]}  Bc3 {[%clk 0:00:39]} 32. Re3 {[%clk 0:00:33]}  Rb1+ {[%clk 0:00:36]} 33. Kg2 {[%clk 0:00:33]}  Bb4 {[%clk 0:00:35]} 34. Rxa6 {[%clk 0:00:32]}  h5 {[%clk 0:00:32]} 35. h4 {[%clk 0:00:30]}  Bd2 {[%clk 0:00:31]} 36. Re7 {[%clk 0:00:27]}  Rb2 {[%clk 0:00:20]} 37. Raa7 {[%clk 0:00:24]}  Bc3 {[%clk 0:00:07]} 38. Rxf7 {[%clk 0:00:24]}  Bd4 {[%clk 0:00:07]} 39. Rf4 {[%clk 0:00:22]}  Bxa7 {[%clk 0:00:05]} 40. Rf6 {[%clk 0:00:21]}  Rxf2+ {[%clk 0:00:04]} 41. Rxf2 {[%clk 0:00:20]}  Bxf2 {[%clk 0:00:05]} 42. Kxf2 {[%clk 0:00:20]}  Kg7 {[%clk 0:00:06]} 43. Kf3 {[%clk 0:00:21]}  Kf6 {[%clk 0:00:07]} 44. Kf4 {[%clk 0:00:21]}  Kf7 {[%clk 0:00:05]} 45. Ke5 {[%clk 0:00:20]}  Ke7 {[%clk 0:00:05]} 46. Kf4 {[%clk 0:00:20]}  Kf6 {[%clk 0:00:04]} 47. Ke4 {[%clk 0:00:20]}  Ke6 {[%clk 0:00:04]} 48. Kf4 {[%clk 0:00:21]}  Kf6 {[%clk 0:00:04]} 49. Ke4 {[%clk 0:00:20]}  Ke6 {[%clk 0:00:05]} 50. Kf4 {[%clk 0:00:20]}  Kf6 {[%clk 0:00:06]} 1/2-1/2

[Event "January 2 Late 2024"]
[Site "https://www.chess.com"]
[Date "2024.01.02"]
[Round "5"]
[White "Pepino, Enrico"]
[Black "Gavrilov, Maxim"]
[Result "0-1"]
[Board "196"]
[TimeControl "180+1"]
[WhiteFideId "810908"]
[BlackFideId "24271454"]
[WhiteElo "2059"]
[BlackElo "2484"]
[WhiteTeam "ITA"]
[BlackTeam "RUS"]
[WhiteClock "0:00:00"]
[BlackClock "0:00:04"]

1. c4 {[%clk 0:03:00]}  e6 {[%clk 0:02:59]} 2. Nc3 {[%clk 0:02:59]}  d5 {[%clk 0:02:59]} 3. d4 {[%clk 0:02:59]}  Nf6 {[%clk 0:02:59]} 4. Bg5 {[%clk 0:02:59]}  Be7 {[%clk 0:02:58]} 5. e3 {[%clk 0:02:58]}  O-O {[%clk 0:02:55]} 6. cxd5 {[%clk 0:02:57]}  exd5 {[%clk 0:02:55]} 7. Bd3 {[%clk 0:02:57]}  h6 {[%clk 0:02:50]} 8. Bh4 {[%clk 0:02:57]}  c6 {[%clk 0:02:50]} 9. Qc2 {[%clk 0:02:57]}  Nbd7 {[%clk 0:02:44]} 10. Nf3 {[%clk 0:02:53]}  Re8 {[%clk 0:02:44]} 11. O-O {[%clk 0:02:53]}  Ne4 {[%clk 0:02:44]} 12. Bxe7 {[%clk 0:02:52]}  Qxe7 {[%clk 0:02:45]} 13. Nd2 {[%clk 0:02:47]}  Ndf6 {[%clk 0:02:41]} 14. Rab1 {[%clk 0:02:46]}  a5 {[%clk 0:02:40]} 15. a3 {[%clk 0:02:45]}  b5 {[%clk 0:01:56]} 16. Ne2 {[%clk 0:02:34]}  Bd7 {[%clk 0:01:52]} 17. Rbc1 {[%clk 0:02:29]}  b4 {[%clk 0:01:44]} 18. axb4 {[%clk 0:02:15]}  Qxb4 {[%clk 0:01:40]} 19. Bxe4 {[%clk 0:02:03]}  dxe4 {[%clk 0:01:32]} 20. Qc3 {[%clk 0:01:57]}  Reb8 {[%clk 0:01:28]} 21. Rc2 {[%clk 0:01:38]}  Nd5 {[%clk 0:01:14]} 22. Qxb4 {[%clk 0:01:34]}  Nxb4 {[%clk 0:01:15]} 23. Rc3 {[%clk 0:01:19]}  Nd5 {[%clk 0:01:14]} 24. Rc2 {[%clk 0:01:14]}  Nb4 {[%clk 0:01:09]} 25. Rc3 {[%clk 0:01:13]}  f5 {[%clk 0:01:10]} 26. f3 {[%clk 0:01:06]}  Nd5 {[%clk 0:01:02]} 27. Ra3 {[%clk 0:00:52]}  Rxb2 {[%clk 0:00:59]} 28. Rd1 {[%clk 0:00:44]}  exf3 {[%clk 0:00:53]} 29. gxf3 {[%clk 0:00:43]}  Nb4 {[%clk 0:00:31]} 30. Nc3 {[%clk 0:00:31]}  Nc2 {[%clk 0:00:31]} 31. Rb3 {[%clk 0:00:21]}  Rxb3 {[%clk 0:00:28]} 32. Nxb3 {[%clk 0:00:21]}  Nxe3 {[%clk 0:00:28]} 33. Ra1 {[%clk 0:00:20]}  Nc4 {[%clk 0:00:16]} 34. Na4 {[%clk 0:00:15]}  Be6 {[%clk 0:00:15]} 35. Nbc5 {[%clk 0:00:13]}  Bd5 {[%clk 0:00:15]} 36. Rb1 {[%clk 0:00:12]}  Bxf3 {[%clk 0:00:14]} 37. Rb7 {[%clk 0:00:11]}  Bd5 {[%clk 0:00:14]} 38. Kf2 {[%clk 0:00:10]}  Re8 {[%clk 0:00:14]} 39. Ra7 {[%clk 0:00:08]}  g5 {[%clk 0:00:14]} 40. Nd7 {[%clk 0:00:08]}  Kh8 {[%clk 0:00:11]} 41. Nac5 {[%clk 0:00:07]}  Rd8 {[%clk 0:00:06]} 42. Nf6 {[%clk 0:00:07]}  Bg8 {[%clk 0:00:06]} 43. Rc7 {[%clk 0:00:03]}  Rxd4 {[%clk 0:00:05]} 44. Rc8 {[%clk 0:00:02]}  Kg7 {[%clk 0:00:05]} 45. Nxg8 {[%clk 0:00:02]}  Nd6 {[%clk 0:00:04]} 46. Rc7+ {[%clk 0:00:02]}  Kxg8 {[%clk 0:00:04]} 47. Ne6 {[%clk 0:00:00]}  Ne8 {[%clk 0:00:04]} 0-1

[Event "January 2 Late 2024"]
[Site "https://www.chess.com"]
[Date "2024.01.02"]
[Round "5"]
[White "Nithyalakshmi, Sivanesan"]
[Black "Fareh, Youness"]
[Result "0-1"]
[Board "198"]
[TimeControl "180+1"]
[WhiteFideId "5706955"]
[BlackFideId "9000526"]
[WhiteElo "2262"]
[BlackElo "2007"]
[WhiteTeam "MAS"]
[BlackTeam "MAR"]
[WhiteClock "0:00:12"]
[BlackClock "0:00:26"]

1. e4 {[%clk 0:03:00]}  c5 {[%clk 0:02:58]} 2. Nf3 {[%clk 0:03:00]}  e6 {[%clk 0:02:58]} 3. d4 {[%clk 0:03:00]}  cxd4 {[%clk 0:02:58]} 4. Nxd4 {[%clk 0:03:01]}  Nf6 {[%clk 0:02:55]} 5. Nc3 {[%clk 0:02:56]}  Nc6 {[%clk 0:02:55]} 6. Bg5 {[%clk 0:02:48]}  Bb4 {[%clk 0:02:53]} 7. Nxc6 {[%clk 0:02:28]}  bxc6 {[%clk 0:02:51]} 8. e5 {[%clk 0:02:28]}  Qa5 {[%clk 0:02:51]} 9. Qd4 {[%clk 0:02:08]}  Nd5 {[%clk 0:02:28]} 10. Bd2 {[%clk 0:02:03]}  c5 {[%clk 0:02:27]} 11. Qc4 {[%clk 0:01:56]}  Bb7 {[%clk 0:01:54]} 12. Bd3 {[%clk 0:01:18]}  Nxc3 {[%clk 0:01:44]} 13. bxc3 {[%clk 0:01:17]}  Ba3 {[%clk 0:01:23]} 14. O-O {[%clk 0:01:16]}  Bd5 {[%clk 0:01:19]} 15. Qg4 {[%clk 0:01:13]}  c4 {[%clk 0:01:08]} 16. Bxc4 {[%clk 0:00:58]}  Bxc4 {[%clk 0:01:01]} 17. Qxc4 {[%clk 0:00:58]}  O-O {[%clk 0:00:59]} 18. Qg4 {[%clk 0:00:57]}  Kh8 {[%clk 0:00:53]} 19. f4 {[%clk 0:00:50]}  Bb2 {[%clk 0:00:52]} 20. Rad1 {[%clk 0:00:33]}  Bxc3 {[%clk 0:00:53]} 21. Bc1 {[%clk 0:00:29]}  Qxa2 {[%clk 0:00:52]} 22. Rd3 {[%clk 0:00:23]}  Qxc2 {[%clk 0:00:44]} 23. Rg3 {[%clk 0:00:22]}  Rg8 {[%clk 0:00:33]} 24. h4 {[%clk 0:00:16]}  Bd4+ {[%clk 0:00:30]} 25. Kh1 {[%clk 0:00:16]}  Qc4 {[%clk 0:00:26]} 26. f5 {[%clk 0:00:15]}  Qxf1+ {[%clk 0:00:26]} 27. Kh2 {[%clk 0:00:15]}  Qxf5 {[%clk 0:00:26]} 28. Qf4 {[%clk 0:00:12]}  Qxf4 {[%clk 0:00:26]} 0-1

[Event "January 2 Late 2024"]
[Site "https://www.chess.com"]
[Date "2024.01.02"]
[Round "5"]
[White "MiguelEduardoGB"]
[Black "Anna20240"]
[Result "1-0"]
[Board "199"]
[TimeControl "180+1"]
[WhiteElo "2198"]
[BlackElo "1940"]
[WhiteClock "0:00:17"]
[BlackClock "0:00:00"]

1. b3 {[%clk 0:02:56]}  d5 {[%clk 0:02:59]} 2. Bb2 {[%clk 0:02:56]}  c5 {[%clk 0:02:59]} 3. Nf3 {[%clk 0:02:57]}  Nc6 {[%clk 0:02:59]} 4. e3 {[%clk 0:02:57]}  Nf6 {[%clk 0:02:58]} 5. Bb5 {[%clk 0:02:57]}  Bg4 {[%clk 0:02:56]} 6. O-O {[%clk 0:02:57]}  e6 {[%clk 0:02:53]} 7. d3 {[%clk 0:02:57]}  Bd6 {[%clk 0:02:51]} 8. Nbd2 {[%clk 0:02:57]}  O-O {[%clk 0:02:51]} 9. Bxc6 {[%clk 0:02:57]}  bxc6 {[%clk 0:02:51]} 10. Qe1 {[%clk 0:02:58]}  Rb8 {[%clk 0:02:48]} 11. Ne5 {[%clk 0:02:57]}  Bh5 {[%clk 0:02:35]} 12. f4 {[%clk 0:02:53]}  Qc7 {[%clk 0:02:30]} 13. Ndf3 {[%clk 0:02:52]}  Bxf3 {[%clk 0:02:28]} 14. Rxf3 {[%clk 0:02:51]}  Nd7 {[%clk 0:02:27]} 15. Nxd7 {[%clk 0:02:45]}  Qxd7 {[%clk 0:02:26]} 16. Rg3 {[%clk 0:02:44]}  f6 {[%clk 0:02:26]} 17. Qe2 {[%clk 0:02:43]}  e5 {[%clk 0:02:22]} 18. Qf3 {[%clk 0:02:32]}  Qf5 {[%clk 0:02:05]} 19. Rf1 {[%clk 0:02:25]}  c4 {[%clk 0:01:56]} 20. dxc4 {[%clk 0:02:17]}  exf4 {[%clk 0:01:51]} 21. cxd5 {[%clk 0:01:41]}  cxd5 {[%clk 0:01:48]} 22. exf4 {[%clk 0:01:39]}  Bc5+ {[%clk 0:01:41]} 23. Kh1 {[%clk 0:01:35]}  Rfe8 {[%clk 0:01:35]} 24. Qd3 {[%clk 0:01:14]}  Qxd3 {[%clk 0:01:19]} 25. Rxd3 {[%clk 0:01:13]}  Rbd8 {[%clk 0:01:12]} 26. Rfd1 {[%clk 0:00:50]}  Re2 {[%clk 0:01:08]} 27. R3d2 {[%clk 0:00:33]}  Rxd2 {[%clk 0:00:52]} 28. Rxd2 {[%clk 0:00:34]}  Be3 {[%clk 0:00:51]} 29. Rd1 {[%clk 0:00:34]}  Bxf4 {[%clk 0:00:51]} 30. g3 {[%clk 0:00:35]}  Be5 {[%clk 0:00:49]} 31. Ba3 {[%clk 0:00:34]}  Kf7 {[%clk 0:00:47]} 32. Bc5 {[%clk 0:00:33]}  a6 {[%clk 0:00:43]} 33. Kg2 {[%clk 0:00:33]}  Rc8 {[%clk 0:00:43]} 34. b4 {[%clk 0:00:32]}  Ke6 {[%clk 0:00:41]} 35. Kf3 {[%clk 0:00:32]}  Bd6 {[%clk 0:00:40]} 36. Bxd6 {[%clk 0:00:23]}  Kxd6 {[%clk 0:00:38]} 37. Rd2 {[%clk 0:00:22]}  Rc3+ {[%clk 0:00:33]} 38. Rd3 {[%clk 0:00:20]}  Rxc2 {[%clk 0:00:32]} 39. Ra3 {[%clk 0:00:20]}  Rc6 {[%clk 0:00:27]} 40. Ke3 {[%clk 0:00:19]}  Rb6 {[%clk 0:00:23]} 41. Rb3 {[%clk 0:00:19]}  Ke5 {[%clk 0:00:21]} 42. a4 {[%clk 0:00:19]}  d4+ {[%clk 0:00:20]} 43. Kd3 {[%clk 0:00:19]}  Kd5 {[%clk 0:00:18]} 44. Rb1 {[%clk 0:00:19]}  h5 {[%clk 0:00:14]} 45. h3 {[%clk 0:00:18]}  Re6 {[%clk 0:00:14]} 46. b5 {[%clk 0:00:18]}  Re3+ {[%clk 0:00:14]} 47. Kd2 {[%clk 0:00:18]}  axb5 {[%clk 0:00:12]} 48. axb5 {[%clk 0:00:19]}  Rxg3 {[%clk 0:00:09]} 49. b6 {[%clk 0:00:20]}  Rg2+ {[%clk 0:00:08]} 50. Kd3 {[%clk 0:00:18]}  Rg3+ {[%clk 0:00:08]} 51. Kd2 {[%clk 0:00:18]}  Rg2+ {[%clk 0:00:07]} 52. Kd3 {[%clk 0:00:19]}  Rg3+ {[%clk 0:00:04]} 53. Ke2 {[%clk 0:00:19]}  Rg2+ {[%clk 0:00:03]} 54. Kf3 {[%clk 0:00:20]}  Rd2 {[%clk 0:00:03]} 55. b7 {[%clk 0:00:20]}  Rd3+ {[%clk 0:00:03]} 56. Ke2 {[%clk 0:00:19]}  Re3+ {[%clk 0:00:03]} 57. Kf2 {[%clk 0:00:20]}  Re8 {[%clk 0:00:02]} 58. b8=Q {[%clk 0:00:20]}  Rxb8 {[%clk 0:00:02]} 59. Rxb8 {[%clk 0:00:21]}  Kc4 {[%clk 0:00:02]} 60. Ke2 {[%clk 0:00:21]}  d3+ {[%clk 0:00:03]} 61. Kd2 {[%clk 0:00:21]}  g5 {[%clk 0:00:03]} 62. Rh8 {[%clk 0:00:20]}  g4 {[%clk 0:00:00]} 63. Rc8+ {[%clk 0:00:17]} 1-0